Cogmind - Beta 15 @@@ ROGUE MODE // 2025.06.13 @ 15:24:37 Player: DinkyDar Result: Destroyed by S-10 Pest with Light Assault Rifle Performance ------------- Evolutions (0) 0 Regions Visited (1) 200 Robots Destroyed (10) 50 Value Destroyed (251) 251 Prototype IDs (0) 0 Alien Tech Used (0) 0 Bonus (0) 0 TOTAL SCORE: 501 Bonus ------- None Cogmind --------- Core Integrity 0/250 Matter 208/300 Energy 6/100 System Corruption 12% Temperature Cool (0) Movement Walking (120) Location -10/Materials Parts ------- > --- POWER (1) -------- (None) > --- PROPULSION (2) --- Aluminum Leg Aluminum Leg > --- UTILITY (2) ------ Small Storage Unit Improved Terrain Scanner > --- WEAPON (2) ------- Medium Laser > --- INVENTORY (8) ---- Heat Sink Terrain Scan Processor Small Laser Peak State ------------ > --- POWER ------------ Light Ion Engine > --- PROPULSION ------- Aluminum Leg Aluminum Leg > --- UTILITY ---------- Improved Terrain Scanner Utility Shielding > --- WEAPON ----------- Assault Rifle Light Assault Rifle > --- INVENTORY -------- Light Ion Engine Medium Laser Small Laser Small Laser [Rating: 9] Favorites ----------- Power Light Ion Engine Engine Light Ion Engine Propulsion Aluminum Leg Leg Aluminum Leg Utility Improved Terrain Scanner Device Improved Terrain Scanner Storage Small Storage Unit Protection Core Shielding Weapon Light Assault Rifle Energy Gun Small Laser Ballistic Gun Light Assault Rifle Ballistic Cannon Light Cannon Build | -11 -10 ------- Run | Yrd Mat Slots Evolved . | . . Power . | . . Propulsion . | . . Utility . | . . Weapon . | . . Parts Attached 15 | 7 8 Power 2 | 2 . Engine 2 | 2 . Core . | . . Reactor . | . . Propulsion 4 | 2 2 Treads . | . . Leg 4 | 2 2 Wheel . | . . Hover . | . . Flight . | . . Utility 4 | 1 3 Device 1 | 1 . Storage 1 | . 1 Processor . | . . Hackware . | . . Protection 2 | . 2 Artifact . | . . Weapon 5 | 2 3 Energy Gun 2 | . 2 Energy Cannon . | . . Ballistic Gun 2 | 2 . Ballistic Cannon 1 | . 1 Launcher . | . . Special Weapon . | . . Impact Weapon . | . . Slashing Weapon . | . . Piercing Weapon . | . . Special Melee Weapon . | . . Unidentified Prototypes . | . . Corrupted Parts 2 | . 2 System Corruption 12 | . 12 Parts Lost 3 | . 3 Power 2 | . 2 Propulsion . | . . Utility . | . . Weapon 1 | . 1 Highest Loss Streak 2 | . 2 To Critical Strikes . | . . Average Backups 3 | . 4 Power . | . . Propulsion . | . . Utility . | . . Weapon 1 | . 2 Tool/Special . | . . Unused Backups 3 | . 3 Power . | . . Propulsion . | . . Utility 2 | . 2 Weapon 1 | . 1 Tool/Special . | . . Average Slot Usage (%) 93 | . 93 Engine 12 | . 12 Leg 25 | . 25 Device 14 | . 14 Storage 1 | . 1 Protection 10 | . 10 Energy Gun 3 | . 3 Ballistic Gun 23 | . 23 Ballistic Cannon 1 | . 1 Peak Build Rating 9 | 8 9 Average Rating 7 | 4 8 On Entrance 4 | . 8 Naked Turns . | . . Heaviest Build 13 | 7 13 Greatest Support 20 | 20 20 Greatest Overweight (x) 4 | . 4 Average Overweight (x) . | . . Largest Inventory Capacity 8 | 5 8 Average Capacity 5 | 5 5 Most Carried 6 | 3 6 Average Carried 3 | . 4 Final Capacity 8 | 5 8 Final Carried 3 | 3 3 Class Distribution -------------------- 100% | Mutant Dominant Class ---------------- Mutant | -10/Materials Resources | -11 -10 ----------- Run | Yrd Mat Matter Collected 395 | 290 105 Remotely . | . . Salvage Created 342 | 48 294 Parts 24 | 5 19 Haulers Intercepted . | . . Recyclers Shooed 1 | . 1 Parts Field Recycled . | . . Retrieved Matter . | . . Parts Self-Destructed . | . . Prevented . | . . Kills | -11 -10 ------- Run | Yrd Mat Combat Hostiles Destroyed 7 | 1 6 Guns 7 | 1 6 Classes Destroyed 5 | 2 3 Worker 1 | . 1 Tunneler 1 | 1 . Watcher 1 | . 1 Swarmer 1 | . 1 Grunt 6 | 1 5 Best Kill Streak 3 | 2 3 Combat Bots Only 2 | 1 2 Max Kills in Single Turn 2 | 2 1 Gunslinging . | . . Exploded . | . . Melee . | . . Uniques/NPCs Destroyed . | . . Combat | -11 -10 -------- Run | Yrd Mat Hostile Shots Fired 111 | 8 103 Missed 40 | 4 36 Hits 71 | 4 67 Projectile 71 | 4 67 Critical Strikes 1 | . 1 Damage Taken 810 | 43 767 Core 254 | 11 243 Absorbed by Shields . | . . Redirected to Shielding 20 | . 20 Core Remaining (%) 95 | 95 . Volleys Fired 46 | 5 41 Largest 2 | 2 2 Hottest 80 | 40 80 Shots Fired 87 | 10 77 Gun 78 | 10 68 Cannon 9 | . 9 Launcher . | . . Special . | . . Kinetic 68 | 10 58 Thermal 19 | . 19 Explosive . | . . Electromagnetic . | . . Robot Hit Streak 6 | 3 6 Robot Miss Streak 10 | 2 10 Penetration Max . | . . Secondary Targets 1 | . 1 Max Gunslinging Chain 1 | . 1 Shots Hit Robots 48 | 6 42 Core Hits 21 | 3 18 Critical Kills . | . . Critical Parts Destroyed 1 | . 1 Critical Strikes 1 | . 1 Destroy 1 | . 1 Melee Attacks . | . . Impact . | . . Slashing . | . . Piercing . | . . Sneak Attacks . | . . Combat Hostiles . | . . Follow-up Attacks . | . . Damage Inflicted 517 | 93 424 Guns 517 | 93 424 Cannons . | . . Explosions . | . . Melee . | . . Ramming . | . . Kinetic 417 | 93 324 Thermal 100 | . 100 Explosive . | . . Electromagnetic . | . . Impact . | . . Slashing . | . . Piercing . | . . Highest Corruption 12 | . 12 Average Corruption 8 | . 8 Corruption Purged . | . . Corruption Blocked . | . . Effects 3 | . 3 Matter Fused 1 | . 1 Energy Discharges 1 | . 1 Misdirections 1 | . 1 Overload Shots . | . . Overflow Damage . | . . Projectiles . | . . Explosions . | . . Melee . | . . Knockbacks . | . . Impact . | . . Kinetic . | . . Secondary . | . . Self-Inflicted Damage . | . . Shots . | . . Rammed . | . . Targets Rammed . | . . Kicked . | . . Crushed . | . . Highest Temperature 52 | 6 52 Average Temperature 17 | 6 18 Received Heat Transfer 315 | 24 291 Siege Activations . | . . Martial Activations . | . . Shielding Activations . | . . Robots Disrupted . | . . Combat Hostiles . | . . Robots Corrupted . | . . Combat Hostiles . | . . Parts Fried . | . . Impact Corruptions . | . . Robots Melted . | . . Combat Hostiles . | . . Parts Melted . | . . Heat Transferred 249 | . 249 Parts Sabotaged . | . . Parts Stolen . | . . Parts Stripped . | . . Power Chain Reactions . | . . Alert | -11 -10 ------- Run | Yrd Mat Maximum Alert Level . | . . Low Security (%) 100 | 100 100 Level 1 . | . . Level 2 . | . . Level 3 . | . . Level 4 . | . . Level 5 . | . . High Security . | . . Max Security . | . . Peak Influence 50 | 25 50 Initial 9 | . 9 Average 10 | 5 11 Influence Increases 184 | 25 159 Destroy 0b10 Robot/C 140 | 20 120 Destroy 0b10 Robot/NC 15 | 5 10 Destroy Leader 22 | . 22 Successful Hack 7 | . 7 Influence Decreases 152 | 10 142 Entered New Map 6 | . 6 Time Decay 126 | 10 116 Lost Part 20 | . 20 Squads Dispatched 1 | . 1 Investigation . | . . Extermination . | . . Reinforcement 1 | . 1 Assault . | . . Garrison . | . . Intercept . | . . Searches Triggered . | . . Construction Impeded . | . . Haulers Reinforced . | . . Active Scanning Responses . | . . Cargo Convoy Interrupts . | . . Stealth | -11 -10 --------- Run | Yrd Mat Distress Signals 1 | . 1 Communications Jammed . | . . Distress Signals . | . . Times Spotted 17 | 1 16 Peak Tracking Total 6 | 1 6 Tactical Retreats . | . . Traps | -11 -10 ------- Run | Yrd Mat Traps Triggered 2 | . 2 Indirectly . | . . Trap Hack Attempts . | . . Triggered . | . . Disarmed . | . . Reprogrammed . | . . Reused . | . . Traps Extracted . | . . Installed . | . . Triggered . | . . Machines | -11 -10 ---------- Run | Yrd Mat Machines Disabled . | . . Max in Single Turn . | . . Machines Repaired . | . . Machines Dismantled . | . . Machines Sabotaged . | . . Overloaded Fab Kills . | . . Hacking | -11 -10 --------- Run | Yrd Mat Machines Accessed 3 | . 3 Terminals 2 | . 2 Fabricators . | . . Repair Stations . | . . Recycling Units 1 | . 1 Scanalyzers . | . . Garrison Access . | . . Total Hacks 15 | . 15 Successful 10 | . 10 Failed 5 | . 5 Catastrophic . | . . Database Lockouts . | . . Manual . | . . Terminals 12 | . 12 Fabricators . | . . Repair Stations . | . . Recycling Units 3 | . 3 Scanalyzers . | . . Garrison Access . | . . Terminal Hacks 7 | . 7 Record 3 | . 3 Locate Traps 1 | . 1 Dispatch Records 1 | . 1 Zone Layout 2 | . 2 Fabricator Hacks . | . . Repair Station Hacks . | . . Recycling Unit Hacks 3 | . 3 Process 1 | . 1 Report Inventory 1 | . 1 Retrieve Matter 1 | . 1 Scanalyzer . | . . Garrison Access Hacks . | . . Unauthorized Hacks . | . . Terminals . | . . Fabricators . | . . Repair Stations . | . . Recycling Units . | . . Scanalyzers . | . . Garrison Access . | . . Data Cores Recovered . | . . Used . | . . Hacking Detections 3 | . 3 Full Trace Events . | . . Feedback Events . | . . Feedback Blocked . | . . Robot Schematics Acquired . | . . Robots Built . | . . Authchips . | . . Time . | . . Total Robot Build Rating . | . . Part Schematics Acquired . | . . Parts Built . | . . Authchips . | . . Time . | . . Total Part Build Rating . | . . Parts Repaired . | . . Time . | . . Parts Recycled . | . . Recycled Matter 32 | . 32 Retrieved Matter 32 | . 32 Retrieved Components . | . . Parts Scanalyzed . | . . Part Schematics Acquired . | . . Parts Damaged . | . . Bothacking | -11 -10 ------------ Run | Yrd Mat Used RIF Installer . | . . Robots Hacked . | . . Non-combat . | . . Combat . | . . Robot Hacks Applied . | . . Relay Couplers Released . | . . Fabnet Peak Effective % . | . . Robots Rewired . | . . Allies Hacked . | . . Hacks Repelled . | . . Allies | -11 -10 -------- Run | Yrd Mat Total Allies . | . . Largest Group . | . . Highest-Rated Group . | . . Highest-Rated Ally . | . . Total Orders . | . . Ally Attacks . | . . Total Damage . | . . Kills . | . . Allies Corrupted . | . . Allies Melted . | . . Intel | -11 -10 ------- Run | Yrd Mat Active Infowar (turns) 507 | 7 500 Terrain 507 | 7 500 Robot Analysis Total . | . . Derelict Logs Recovered . | . . Drone Launches . | . . Drone Recoveries . | . . Exploration | -11 -10 ------------- Run | Yrd Mat Turns Passed 606 | 106 500 Spaces Moved 365 | 76 289 Core 23 | 18 5 Treads . | . . Legs 342 | 58 284 Wheels . | . . Hover . | . . Flight . | . . Fastest Speed 50 | 50 120 Average Speed 117 | 103 121 Slowest Speed 250 | 120 250 Overloaded Moves . | . . Propulsion Burnouts . | . . Robots Hopped . | . . Potential Cave-ins . | . . Cave-ins Triggered . | . . Exploration Rate (%) 24 | 6 43 Regions Visited 1 Branch Regions . Pre-discovered Areas . | . . Known Exits Taken . | . . Unknown Exits Taken 1 | 1 . Scrap Searched . | . . Spaces Dug . | . . Terrain Destroyed . | . . Melee . | . . Projectile . | . . AOE . | . . Terrain Rammed . | . . Walls Destroyed . | . . Machines Disabled . | . . Actions | -11 -10 --------- Run | Yrd Mat Total 460 | 91 369 Wait 17 | 2 15 Move 364 | 75 289 Hop . | . . Pick Up 10 | 2 8 Fast Attach 8 | 6 2 Attach 6 | . 6 Detach . | . . Swap 3 | 1 2 Drop 6 | . 6 Fire 46 | 5 41 Melee . | . . Ram . | . . Kick . | . . Crush . | . . Escape Stasis . | . . Rewire . | . . Trap . | . . Miscellaneous . | . . Route ------- -11/Scrapyard -10/Materials (discovered 1 exit: [*Min]) History --------- Turn | Location | Event 2 | -11/Scrapyard | Met Revision 17 61 | -11/Scrapyard | Discovered new exit (range 8) 107 | -11/Scrapyard | Entered Materials 201 | -10/Materials | Discovered new exit (range 15) 307 | -10/Materials | Build established: Mutant 554 | -10/Materials | Core integrity fell below 50% 563 | -10/Materials | System corruption reached 10% 583 | -10/Materials | Core integrity fell below 20% 607 | -10/Materials | Destroyed by S-10 Pest with Light Assault Rifle Last Messages --------------- 00572_ Lgt. Ion Engine destroyed. [Achievement: Storm Trooper] 00574_ Sml. Laser destroyed. 00584_ K-01 Serf collects debris. 00592_ R-06 Scavenger collects Sml. Laser. 00593_ System corrupted: Energy discharge (-28). 00594_ K-01 Serf collects debris. 00599_ G-34 Mercenary destroyed. To regain energy, simply wait via the mouse wheel, '.', or KP5. Also make sure your per-turn energy generation is a net positive, and consider deactivating power-draining parts if not. 00602_ K-01 Serf collects debris. 00604_ R-06 Scavenger collects Flight Unit. 00604_ Acquired Sml. Laser. 00605_ Dropped Lgt. Cannon. 00606_ K-01 Serf collects debris. 00607_ R-06 Scavenger collects Lgt. Ion Engine. [Achievement: First Step to Greatness] Map ----- +----------------------------------------------------+ | ?# """ # #??# ##?#??# #????????????? | | ?# """ # #?## #??#??# ##???????????? | | ?######### #??################# ######???????? | | ??# """ # #?????#???# # ???????? | | ??# "Y" # ########### # ??#????? | | ??# % + ##""|"!""## # ??#????? | | ??# = # ## "|"!" ## ######## ???????? | | ?## # ## ## #??????# ???????? | | ### # #??????# #?????? | | ??######## < ##?????# ???????? | | ?????????# ##?????# ???????? | | ??????######+## ###### ####### ?? ???? | | ??????# !! ###########??# #?????? | | ??????# ! # #### T ##### #?????? | | ?????## # / % #???????????????? | | ??????# # #### =%= #???????????????? | | ??????#[ = # #??# #####????????? ?????? | | ? ????#############r########t#????? ?????????????? | | ???????????? ? /[% [ g##? ????#??????????? | | ?? ? ???? ??????###==% [= #???????????#???????? | | ?????????? ?? ????# =! #??????#????????????? | | ??????#???? ?? ?#?# !! #???##??????????????? | | ???????????"??????# k !! o#???????????????????? | | ????????????????#?# #?"?"? ??#??????????? | | ???????????? ? ??## s # ???? ??? ?????????? | | ????????????????+ "T" @ + ??? ??????????????? | | ???????#???????#### """!%= # ??????##?????????? | | ????????????#????######### #?" ???????????????? | | ?????????????#??????????## #?? ? ????????????? | | ????????????????#????????? #???????????????????? | | ?????????????????????????? #???????????????????? | | ?????????????????????????? #?????#?????????????? | | ??????????#???????????????? ##??????????????????? | | ???????????????#??? ????? ???????????????????? | | ?????????????????????? ???? #??? ???????????????? | | ??????????????????#????????? #???????????????????? | | ????????????????????? ?????? #???????????????????? | | ???????????????????????????? #???????????????????? | | ???????????????????????????? ???????????????????? | | ????????????????????????????? ???????????????????? | | ?????????????????????????????????????????????????? | | ?????????????????????????????????????????????????? | | ?????????????????????????????????????????????????? | | ?????????????????????????????????????????????????? | | ?????????????????????????????????????????????????? | | ?????????????????????????????????????????????????? | | | | | | | | | +----------------------------------------------------+ Best States ------------- Heat Dissipation 25 Energy Generation 10 Energy Capacity 125 Matter Stores 300 Matter Capacity 300 Sight Range 16 Terrain Scan Range 16 Terrain Scan Density 10 Core Shielding 20 Utility Shielding 33 Evasion (%) 55 Item Schematics ----------------- None Robot Schematics ------------------ None Fabricated ------------ Nothing Repaired ---------- Nothing Alien Tech Used ----------------- None Achievements -------------- First Step to Greatness Storm Trooper System Compromised Challenges ------------ None Game ------ Seed JunkSchematicStreamer Manual? 0 Play Time 00:21:36 Cumulative 1.4 hours Start 2025.06.13 @ 14:59:14 End 2025.06.13 @ 15:24:37 Sessions 1 Manual Loads 0 Difficulty Rogue Special Mode None Game No. 2 Rogue 2 Adventurer 0 Explorer 0 Win Type - Total 0 Types 0/0/0/0/0/0/0/0/0/0 Lore% 0 Gallery% 2 Achievement% 2 Wizard Run 0 Options --------- Layout 1 ASCII 0 Keyboard 0 Movement Mouse Keybinds 0 Fullscreen 1 Font 24/Terminus Map View 50x35 Zoom Use 0% Tactical HUD 1 Map Filters NONE Filters NONE Steam 1 RUN: 3ae50e53-1cbc-4257-a8d6-8237eb4552a4